Workbook

Sheet Таблица 1
C3: Подготовлено редакцией АПС «Бизнес-Инфо» (ООО «Профессиональные правовые системы»)
H4: Таблица 1
C5: Плановые данные о продукции
C7: Наименование продукции | D7: Кол-во, ед. | E7: Себестои-мость ед. продукции | F7: Цена за ед. без НДС | G7: Затраты на 1 руб. товарной продукции (план) | H7: Прибыль на 1 руб. товарной продукции
C8: Костюм женский брючный | D8: 1,560 | E8: 350,890 | F8: 456,157 | G8: =((D8*E8)+(D9*E9)+(D10*E10))/((D8*F8)+(D9*F9)+(D10*E10)) -> 0.813 | H8: =1-G8 -> 0.187
C9: Костюм женский пляжный | D9: 2,890 | E9: 291,320 | F9: 378,716
C10: Платье вечернее отрезное | D10: 1,068 | E10: 395,030 | F10: 513,539

Sheet Таблица 2
H3: Таблица 2
C4: Фактические данные о продукции
C6: Наименование продукции | D6: Кол-во, ед. | E6: Себестои-мость ед. продукции | F6: Цена за ед. без НДС | G6: Затраты на 1 руб. товарной продукции (план) | H6: Прибыль на 1 руб. товарной продукции
C7: ='Таблица 1'!C8 -> Костюм женский брючный | D7: 3,850 | E7: ='Таблица 1'!E8/'Таблица 1'!D8*D7 -> 865,979 | F7: =E7*1.3 -> 1,125,773 | G7: =((D7*E7)+(D8*E8)+(D9*E9))/((D7*F7)+(D8*E8)+(D9*E9)) -> 0.806 | H7: =1-G7 -> 0.194
C8: ='Таблица 1'!C9 -> Костюм женский пляжный | D8: 2,890 | E8: 150,020 | F8: =E8*1.3 -> 195,026
C9: ='Таблица 1'!C10 -> Платье вечернее отрезное | D9: 1,068 | E9: 370,000 | F9: =E9*1.3 -> 481,000

Sheet Таблица 3
H3: Таблица 3
C4: Динамика показателей
C6: Наименование продукции | D6: Кол-во, ед. | E6: Себестои-мость ед. продукции | F6: Цена за ед. без НДС | G6: Затраты на 1 руб. товарной продукции (план) | H6: Прибыль на 1 руб. товарной продукции
C7: ='Таблица 1'!C8 -> Костюм женский брючный | D7: ='Таблица 2'!D7-'Таблица 1'!D8 -> 2,290 | E7: ='Таблица 2'!E7-'Таблица 1'!E8 -> 515,089 | F7: ='Таблица 2'!F7-'Таблица 1'!F8 -> 669,616 | G7: ='Таблица 2'!G7-'Таблица 1'!G8 -> -0.007 | H7: ='Таблица 2'!H7-'Таблица 1'!H8 -> 0.007
C8: ='Таблица 1'!C9 -> Костюм женский пляжный | D8: ='Таблица 2'!D8-'Таблица 1'!D9 -> 0 | E8: ='Таблица 2'!E8-'Таблица 1'!E9 -> -141,300 | F8: ='Таблица 2'!F8-'Таблица 1'!F9 -> -183,690
C9: ='Таблица 1'!C10 -> Платье вечернее отрезное | D9: ='Таблица 2'!D9-'Таблица 1'!D10 -> 0 | E9: ='Таблица 2'!E9-'Таблица 1'!E10 -> -25,030 | F9: ='Таблица 2'!F9-'Таблица 1'!F10 -> -32,539

Sheet Таблица 4
F3: Таблица 4
C4: Расчет факторов влияния
C6: Фактор влияния | D6: Алгоритм расчета | E6: Коэффициент | F6: %
C7: Индекс затрат на рубль за счет изменения себестоимости единицы продукции | D7: =CONCATENATE("(","(",'Таблица 2'!E7," * ",'Таблица 2'!D7," + ",'Таблица 2'!E8," * ",'Таблица 2'!D8," + ",'Таблица 2'!E9," * ",'Таблица 2'!D9,")"," / ","(",'Таблица 1'!F8," * ",'Таблица 2'!D7," + ",'Таблица 1'!F9," * ",'Таблица 2'!D8," + ",'Таблица 1'!F10," * ",'Таблица 2'!D9,")",")"," / ","(","(",'Таблица 1'!E8," * ",'Таблица 2'!D7," + ",'Таблица 1'!E9," * ",'Таблица 2'!D8," + ",'Таблица 1'!E10," * ",'Таблица 2'!D9,")"," / ","(",'Таблица 1'!F8," * ",'Таблица 2'!D7," + ",'Таблица 1'!F9," * ",'Таблица 2'!D8," + ",'Таблица 1'!F10," * ",'Таблица 1'!D10,")",")","-","1") -> ((865979 * 3850 + 150020 * 2890 + 370000 * 1068) / (456157 * 3850 + 378716 * 2890 + 513539 * 1068)) / ((350890 * 3850 + 291320 * 2890 + 395030 * 1068) / (456157 * 3850 + 378716 * 2890 + 513539 * 1068))-1 | E7: =ВЫЧИСЛИТЬ.D7 -> 0.592 | F7: =E7*100 -> 59.20
C8: Индекс затрат на рубль за счет изменения цены | D8: =CONCATENATE("(","(",'Таблица 2'!E7," * ",'Таблица 2'!D7," + ",'Таблица 2'!E8," * ",'Таблица 2'!D8," + ",'Таблица 2'!E9," * ",'Таблица 2'!D9,")"," / ","(",'Таблица 2'!F7," * ",'Таблица 2'!D7," + ",'Таблица 2'!F8," * ",'Таблица 2'!D8," + ",'Таблица 2'!F9," * ",'Таблица 2'!D9,")",")"," / ","(","(",'Таблица 1'!F8," * ",'Таблица 2'!D7," + ",'Таблица 1'!F9," * ",'Таблица 2'!D8," + ",'Таблица 1'!F10," * ",'Таблица 1'!D10,")"," /","(",'Таблица 2'!E7," * ",'Таблица 2'!D7," + ",'Таблица 2'!E8," * ",'Таблица 1'!D9," + ",'Таблица 2'!E9," * ",'Таблица 1'!D10,")",")","-","1") -> ((865979 * 3850 + 150020 * 2890 + 370000 * 1068) / (1125773 * 3850 + 195026 * 2890 + 481000 * 1068)) / ((456157 * 3850 + 378716 * 2890 + 513539 * 1068) /(865979 * 3850 + 150020 * 2890 + 370000 * 1068))-1 | E8: =ВЫЧИСЛИТЬ.D8 -> -0.058 | F8: =E8*100 -> -5.80
C9: Общий индекс затрат на 1 рубль товарной продукции | D9: =CONCATENATE("(","(",'Таблица 2'!E7," * ",'Таблица 2'!D7," + ",'Таблица 2'!E8," * ",'Таблица 2'!D8," + ",'Таблица 2'!E9," * ",'Таблица 2'!D9,")"," / ","(",'Таблица 2'!F7," * ",'Таблица 2'!D7," + ",'Таблица 2'!F8," * ",'Таблица 2'!D8," + ",'Таблица 2'!F9," * ",'Таблица 2'!D9,")",")"," * ","(","(",'Таблица 1'!F8," * ",'Таблица 2'!D7," + ",'Таблица 1'!F9," * ",'Таблица 2'!D8," + ",'Таблица 1'!F10," * ",'Таблица 1'!D10,")"," / ","(",'Таблица 1'!E8," * ",'Таблица 1'!D8," + ",'Таблица 1'!E9," * ",'Таблица 1'!D9," + ",'Таблица 1'!E10," * ",'Таблица 1'!D10,")",")","-","1") -> ((865979 * 3850 + 150020 * 2890 + 370000 * 1068) / (1125773 * 3850 + 195026 * 2890 + 481000 * 1068)) * ((456157 * 3850 + 378716 * 2890 + 513539 * 1068) / (350890 * 1560 + 291320 * 2890 + 395030 * 1068))-1 | E9: =ВЫЧИСЛИТЬ.d9 -> 0.444 | F9: 44.40
